fUSD/lending_fUSD_20260221
["ID","MTS","AMOUNT","RATE_DAILY","PERIOD"]
[406278659,1771684785629,-150.0,0.00045024,120]
[406278660,1771684785652,-255.530284,0.00045024,120]
[406278661,1771684785894,10980.49417424,0.00045024,30]
[406278662,1771684785965,-210.07474727,0.00013727,2]
[406278663,1771684785989,-200.0,0.00013727,2]
[406278664,1771684786010,-500.0,0.00013727,2]
[406278665,1771684786031,-248.45919699,0.00013727,2]
[406278666,1771684786051,-500.0,0.00013727,2]
[406278667,1771684786071,-500.0,0.00013727,2]
[406278668,1771684786090,-500.0,0.00013727,2]
[406278669,1771684786110,-500.0,0.00013727,2]
[406278670,1771684786129,-980.0,0.00013727,2]
[406278671,1771684786274,-300.0,0.00013727,2]
[406278672,1771684786296,-150.0,0.00013727,2]
[406278673,1771684786319,-411.46605574,0.00013728,2]
[406278674,1771684786359,984.63269362,0.00045024,30]
[406278675,1771684786400,-5000.0,0.00013728,2]
[406278676,1771684799844,-5141.461092,0.00028397,30]
[406278677,1771684799869,-326.65,0.000308,30]
[406278678,1771684799901,-1543.838,0.00036932,46]
[406278679,1771684799924,-170.248,0.00036932,46]
[406278680,1771684799951,-3232.0,0.00037099,120]
[406278681,1771684799976,-151.0,0.00037099,120]
[406278682,1771684800002,-481.0,0.00037128,120]
[406278683,1771684800028,-326.65,0.000374,30]
[406278684,1771684800054,-2468.91,0.00038034,30]
[406278685,1771684800081,-4048.04,0.000387,30]
[406278686,1771684800108,-2494.0255,0.00038888,30]
[406278687,1771684800133,-160.0,0.00039,30]
[406278688,1771684800159,-153.0,0.0004,120]
[406278689,1771684800191,-153.0,0.000407,120]
[406278690,1771684800217,-87019.0,0.0004095,60]
[406278691,1771684800242,-329.37669829,0.00041,120]
[406278692,1771684800268,-842.0,0.00041096,120]
[406278693,1771684800295,-153.0,0.000415,120]
[406278694,1771684800329,-842.0,0.00041644,120]
[406278695,1771684800356,-4048.04,0.000419,30]
[406278696,1771684800381,-842.0,0.00042192,120]
[406278697,1771684800408,-153.0,0.000422,120]
[406278698,1771684800433,-87019.0,0.000423,60]
[406278699,1771684800459,-1851.68,0.00042546,120]
[406278700,1771684800483,-842.0,0.0004274,120]
[406278701,1771684800509,-153.0,0.000429,120]
[406278702,1771684800538,-160.0,0.00043,120]
[406278703,1771684800564,-842.0,0.00043288,120]
[406278704,1771684800591,-500.0,0.00043524,60]
[406278705,1771684800617,-511.40531467,0.00043524,60]
[406278706,1771684800643,-500.0,0.00043524,60]
[406278707,1771684800667,-1099.83385679,0.00043562,120]
[406278708,1771684800693,-153.0,0.000436,120]
[406278709,1771684800719,-87019.0,0.0004365,60]
[406278710,1771684800755,-500.0,0.00043835,70]
[406278711,1771684800783,-842.0,0.00043836,120]
[406278712,1771684800814,-153.2986871,0.00043836,120]
[406278713,1771684800838,-500.0,0.00043836,120]
[406278714,1771684800863,-150.0,0.00043836,120]
[406278715,1771684800887,-500.0,0.00043836,120]
[406278716,1771684800915,-500.0,0.00043836,120]
[406278717,1771684800941,-150.0,0.00043836,120]
[406278718,1771684800968,-500.0,0.00043836,120]
[406278719,1771684800993,-150.0,0.00043836,120]
[406278720,1771684801020,-611.81596152,0.00043836,120]
[406278721,1771684801045,-150.0,0.00043836,120]
[406278722,1771684801070,-500.0,0.00043836,120]
[406278723,1771684801094,-150.0,0.00043836,120]
[406278724,1771684801119,-500.0,0.00043836,120]
[406278725,1771684801144,-150.0,0.00043836,120]
[406278726,1771684801170,-500.0,0.00043836,120]
[406278727,1771684801195,-150.0,0.00043836,120]
[406278728,1771684801219,-150.0,0.00043836,120]
[406278729,1771684801247,-500.0,0.00043836,120]
[406278730,1771684801272,-150.0,0.00043836,120]
[406278731,1771684801297,-205.75182249,0.00043836,120]
[406278732,1771684801325,-500.0,0.00043836,120]
[406278733,1771684801352,-200.0,0.00043836,120]
[406278734,1771684801380,-150.0,0.00043836,120]
[406278735,1771684801407,-500.0,0.00043836,120]
[406278736,1771684801433,-150.0,0.00043836,120]
[406278737,1771684801458,-212.34238859,0.00043836,120]
[406278738,1771684801486,-500.0,0.00043836,120]
[406278739,1771684801515,-500.0,0.00043836,120]
[406278740,1771684801539,-500.0,0.00043836,120]
[406278741,1771684801564,-500.0,0.00043836,120]
[406278742,1771684801589,-389.59328754,0.00043836,120]
[406278743,1771684801614,-1145.66026749,0.0004395,120]
[406278744,1771684801639,-500.0,0.00044072,60]
[406278745,1771684801666,-4048.04,0.000441,30]
[406278746,1771684801693,-999.0,0.00044136,120]
[406278747,1771684801718,-177.22145727,0.000442,120]
[406278748,1771684801743,-201.79687633,0.000442,120]
[406278749,1771684801767,-196.03907193,0.000442,120]
[406278750,1771684801792,-258.46979101,0.000442,120]
[406278751,1771684801815,-184.12604253,0.000442,120]
[406278752,1771684801838,-183.10282582,0.000442,120]
[406278753,1771684801864,-1195.47158347,0.00044338,120]
[406278754,1771684801890,-500.0,0.00044383,120]
[406278755,1771684801914,-170.88294686,0.00044383,120]
[406278756,1771684801938,-222.62547097,0.00044383,120]
[406278757,1771684801963,-171.28500779,0.00044383,120]
[406278758,1771684801988,-500.0,0.00044383,120]
[406278759,1771684802013,-500.0,0.00044383,120]
[406278760,1771684802037,-500.0,0.00044383,120]
[406278761,1771684802061,-500.0,0.00044383,120]
[406278762,1771684802086,-370.53793113,0.00044383,120]
[406278763,1771684802112,-500.0,0.00044383,120]
[406278764,1771684802286,-500.0,0.00044383,120]
[406278765,1771684802312,-500.0,0.00044383,120]
[406278766,1771684802337,-349.42543252,0.00044383,120]
[406278767,1771684802360,-315.63046994,0.00044383,120]
[406278768,1771684802384,-500.0,0.00044383,120]
[406278769,1771684802408,-500.0,0.00044383,120]
[406278770,1771684802431,-500.0,0.00044383,120]
[406278771,1771684802455,-170.9360008,0.00044383,120]
[406278772,1771684802479,-1000.0,0.00044383,120]
[406278773,1771684802504,-1000.0,0.00044383,120]
[406278774,1771684802532,-1000.0,0.00044383,120]
[406278775,1771684802557,-1000.0,0.00044383,120]
[406278776,1771684802581,-1000.0,0.00044383,120]
[406278777,1771684802607,-1000.0,0.00044383,120]
[406278778,1771684802630,-1000.0,0.00044383,120]
[406278779,1771684802653,-1000.0,0.00044383,120]
[406278780,1771684802677,-1000.0,0.00044383,120]
[406278781,1771684802700,-1000.0,0.00044383,120]
[406278782,1771684802723,-1000.0,0.00044383,120]
[406278783,1771684802747,-1000.0,0.00044383,120]
[406278784,1771684802770,-1000.0,0.00044383,120]
[406278785,1771684802795,-1000.0,0.00044383,120]
[406278786,1771684802818,-1000.0,0.00044383,120]
[406278787,1771684802841,-1000.0,0.00044383,120]
[406278788,1771684802864,-1000.0,0.00044383,120]
[406278789,1771684802887,-1000.0,0.00044383,120]
[406278790,1771684802910,-1000.0,0.00044383,120]
[406278791,1771684802933,-501.048194,0.00044383,30]
[406278792,1771684802956,-750.0,0.00044383,30]
[406278793,1771684802979,-842.0,0.00044384,120]
[406278794,1771684803001,-153.0,0.000444,120]
[406278795,1771684803025,-150.0,0.000444,120]
[406278796,1771684803049,-150.0,0.000444,120]
[406278797,1771684803073,-150.0,0.000444,120]
[406278798,1771684803097,-150.0,0.000444,120]
[406278799,1771684803122,-2000.0,0.0004456,120]
[406278800,1771684803148,-500.0,0.0004462,60]
[406278801,1771684803173,-500.0,0.0004462,60]
[406278802,1771684803199,-2000.0,0.0004466,120]
[406278803,1771684803224,-1249.8112009,0.00044726,120]
[406278804,1771684803254,-300.21223,0.00044732,120]
[406278805,1771684803280,-2000.0,0.0004476,120]
[406278806,1771684803305,-6999.96,0.000448,120]
[406278807,1771684803332,-2000.0,0.0004486,120]
[406278808,1771684803356,-696.96510435,0.00044924,120]
[406278809,1771684803380,-296.63098615,0.00044924,30]
[406278810,1771684803406,-842.0,0.00044932,120]
[406278811,1771684803431,-2000.0,0.0004496,120]
[406278812,1771684803456,-500.0,0.00044995,120]
[406278813,1771684803481,-200.0,0.00044995,120]
[406278814,1771684803508,-467.51116128,0.00044999,120]
[406278815,1771684803538,-1000.0,0.00044999,120]
[406278816,1771684803565,-87019.0,0.00045,60]
[406278817,1771684803590,-1421.06,0.00045,120]
[406278818,1771684803614,-183.74,0.00045,120]
[406278819,1771684803640,-151.0,0.00045015,30]
[406278820,1771684803665,-151.0,0.00045024,120]
[406278821,1771684803691,-151.0,0.00045024,120]
[406278822,1771684803715,-151.0,0.00045024,120]
[406278823,1771684803741,-151.0,0.00045024,120]
[406278824,1771684803766,-151.0,0.00045024,120]
[406278825,1771684803792,-151.0,0.00045024,120]
[406278826,1771684803816,-466.97259993,0.00045024,30]
[406278827,1771684803843,-151.0,0.00045024,120]
[406278828,1771684803872,-151.0,0.00045024,120]
[406278829,1771684803900,-151.0,0.00045024,120]
[406278830,1771684803927,-253.842309,0.00045024,120]
[406278831,1771684803952,-478.0,0.00045024,60]
[406278832,1771684803977,-1729.82304714,0.00045024,120]
[406278833,1771684804004,-226084.5320264,0.00045024,54]
[406278834,1771684804043,-151.0,0.00045035,120]
[406278835,1771684804079,-151.0,0.00045035,120]
[406278836,1771684804110,-233.13055887,0.00045035,120]
[406278837,1771684804137,-151.0,0.00045036,120]
[406278838,1771684804163,-300.0,0.00045038,30]
[406278839,1771684804189,-666.0,0.00045038,30]
[406278840,1771684804215,-300.0,0.00045038,30]
[406278841,1771684804241,-666.0,0.00045038,30]
[406278842,1771684804268,-260.717642,0.00045038,120]
[406278843,1771684804295,-151.0,0.00045038,120]
[406278844,1771684804322,-151.0,0.00045038,120]
[406278845,1771684804348,-151.0,0.00045038,120]
[406278846,1771684804375,-151.0,0.00045038,120]
[406278847,1771684804403,-151.0,0.00045038,120]
[406278848,1771684804431,-151.0,0.00045038,120]
[406278849,1771684804457,-151.0,0.00045038,31]
[406278850,1771684804483,-151.0,0.00045038,31]
[406278851,1771684804514,-151.0,0.00045038,31]
[406278852,1771684804542,-151.0,0.00045038,31]
[406278853,1771684804569,-151.0,0.00045038,31]
[406278854,1771684804596,-182.732263,0.00045038,31]
[406278855,1771684804624,-151.0,0.00045038,120]
[406278856,1771684804651,-151.0,0.00045038,120]
[406278857,1771684804676,-151.0,0.00045038,120]
[406278858,1771684804703,-289.377604,0.00045038,120]
[406278859,1771684804730,-215.973522,0.00045038,60]
[406278860,1771684804761,-236.674286,0.00045038,120]
[406278861,1771684804788,-151.0,0.00045038,120]
[406278862,1771684804815,-151.0,0.00045038,120]
[406278863,1771684804842,-241.852372,0.00045038,120]
[406278864,1771684804870,-151.0,0.00045038,120]
[406278865,1771684804898,-151.0,0.00045038,120]
[406278866,1771684804926,-151.0,0.00045038,120]
[406278867,1771684804954,-151.0,0.00045038,120]
[406278868,1771684804981,-151.0,0.00045038,120]
[406278869,1771684805221,-151.0,0.00045038,120]
[406278870,1771684805250,-151.0,0.00045038,120]
[406278871,1771684805279,-271.53137,0.00045038,120]
[406278872,1771684805306,-151.0,0.00045038,120]
[406278873,1771684805332,-222.31977,0.00045038,120]
[406278874,1771684805358,-151.0,0.00045038,120]
[406278875,1771684805386,-151.0,0.00045038,120]
[406278876,1771684805412,-151.0,0.00045038,120]
[406278877,1771684805439,-151.0,0.00045038,120]
[406278878,1771684805466,-151.0,0.00045038,120]
[406278879,1771684805491,-151.0,0.00045038,120]
[406278880,1771684805519,-151.0,0.00045038,120]
[406278881,1771684805547,-257.436788,0.00045038,120]
[406278882,1771684805574,-153.681994,0.00045038,120]
[406278883,1771684805600,-610.342215,0.00045038,120]
[406278884,1771684805624,-610.342215,0.00045038,120]
[406278885,1771684805650,-610.342215,0.00045038,120]
[406278886,1771684805676,-610.342215,0.00045038,120]
[406278887,1771684805700,-610.342215,0.00045038,120]
[406278888,1771684805724,-610.342215,0.00045038,120]
[406278889,1771684805747,-610.342215,0.00045038,120]
[406278890,1771684805773,-610.342215,0.00045038,120]
[406278891,1771684805797,-610.342215,0.00045038,120]
[406278892,1771684805822,-610.342215,0.00045038,120]
[406278893,1771684805847,-610.342215,0.00045038,120]
[406278894,1771684805870,-610.342215,0.00045038,120]
[406278895,1771684805895,-610.342215,0.00045038,120]
[406278896,1771684805920,-610.342215,0.00045038,120]
[406278897,1771684805945,-610.342215,0.00045038,120]
[406278898,1771684805970,-610.342215,0.00045038,120]
[406278899,1771684805995,-610.342215,0.00045038,120]
[406278900,1771684806022,-610.342215,0.00045038,120]
[406278901,1771684806047,-610.342215,0.00045038,120]
[406278902,1771684806071,-610.342219,0.00045038,120]
[406278903,1771684806097,-155.919683,0.00045039,120]
[406278904,1771684806121,-274.29,0.00045041,30]
[406278905,1771684806146,-476.83,0.00045041,30]
[406278906,1771684806170,-201.62,0.00045041,30]
[406278907,1771684806194,-476.83,0.00045041,30]
[406278908,1771684806218,-476.83,0.00045041,30]
[406278909,1771684806243,-484.98,0.00045041,30]
[406278910,1771684806268,-2000.0,0.0004506,120]
[406278911,1771684806294,-153.0,0.000451,120]
[406278912,1771684806319,-1309.32601999,0.00045114,120]
[406278913,1771684806344,-364.16567765,0.00045153,120]
[406278914,1771684806368,-1106.0,0.00045168,30]
[406278915,1771684806393,-150.0,0.00045168,30]
[406278916,1771684806417,-150.0,0.00045168,30]
[406278917,1771684806443,-150.0,0.00045168,30]
[406278918,1771684806471,-150.0,0.00045168,30]
[406278919,1771684806497,-150.0,0.00045168,30]
[406278920,1771684806523,-170.80602759,0.00045168,30]
[406278921,1771684806546,-150.0,0.00045168,30]
[406278922,1771684806572,-150.0,0.00045168,30]
[406278923,1771684806596,-150.0,0.00045168,30]
[406278924,1771684806623,-152.03,0.000452,120]
[406278925,1771684806648,-150.0,0.00045233,120]
[406278926,1771684806674,-345.6,0.00045244,120]
[406278927,1771684806698,-202.55,0.00045248,120]
[406278928,1771684806723,-188.12,0.00045253,120]
[406278929,1771684806749,-183.46,0.00045253,120]
[406278930,1771684806774,-239.59,0.00045254,120]
[406278931,1771684806800,-152.03,0.000453,120]
[406278932,1771684806826,-150.0,0.00045311,120]
[406278933,1771684806853,-150.0,0.00045319,120]
[406278934,1771684806877,-345.6,0.00045344,120]
[406278935,1771684806903,-202.55,0.00045348,120]
[406278936,1771684806927,-150.0,0.00045393,120]
[406278937,1771684806951,-152.03,0.000454,120]
[406278938,1771684806975,-153.0,0.000454,120]
[406278939,1771684806997,-531.68701432,0.00045421,120]
[406278940,1771684807022,-345.6,0.00045444,120]
[406278941,1771684807047,-202.55,0.00045448,120]
[406278942,1771684807072,-150.0,0.00045455,120]
[406278943,1771684807095,-842.0,0.00045479,120]
[406278944,1771684807121,-150.0,0.00045489,120]
[406278945,1771684807149,-152.03,0.000455,120]
[406278946,1771684807172,-1374.79232099,0.00045502,120]
[406278947,1771684807196,-999.0,0.00045506,120]
[406278948,1771684807221,-150.0,0.00045547,120]
[406278949,1771684807247,-202.55,0.00045548,120]
[406278950,1771684807271,-488.18844374,0.00045556,120]
[406278951,1771684807296,-150.0,0.00045599,120]
[406278952,1771684807325,-152.03,0.000456,120]
[406278953,1771684807350,-177.22145727,0.000456,120]
[406278954,1771684807375,-201.79687633,0.000456,120]
[406278955,1771684807402,-258.46979101,0.000456,120]
[406278956,1771684807428,-184.12604253,0.000456,120]
[406278957,1771684807455,-183.10282582,0.000456,120]
[406278958,1771684807481,-150.0,0.00045601,120]
[406278959,1771684807509,-202.55,0.00045648,120]
[406278960,1771684807539,-150.0,0.00045676,120]
[406278961,1771684807565,-152.03,0.000457,120]
[406278962,1771684807589,-633.35011916,0.000457,120]
[406278963,1771684807614,-150.0,0.00045702,120]
[406278964,1771684807642,-150.0,0.00045704,120]
[406278965,1771684807668,-150.0,0.00045706,120]
[406278966,1771684807693,-500.0,0.00045716,60]
[406278967,1771684807717,-500.0,0.00045716,60]
[406278968,1771684807742,-150.0,0.00045722,120]
[406278969,1771684807768,-202.55,0.00045748,120]
[406278970,1771684807792,-150.0,0.00045748,120]
[406278971,1771684807818,-152.03,0.000458,120]
[406278972,1771684807842,-153.0,0.000458,120]
[406278973,1771684807867,-150.0,0.00045812,120]
[406278974,1771684808027,-150.0,0.00045819,120]
[406278975,1771684808054,-202.55,0.00045848,120]
[406278976,1771684808080,-150.0,0.00045881,120]
[406278977,1771684808107,-1447.14981157,0.0004589,120]
[406278978,1771684808137,-152.03,0.000459,120]
[406278979,1771684808165,-150.0,0.00045939,120]
[406278980,1771684808193,-202.55,0.00045948,120]
[406278981,1771684808220,-150.0,0.00045949,120]
[406278982,1771684808247,-150.0,0.00045979,120]
[406278983,1771684808275,-150.0,0.00045985,120]
[406278984,1771684808304,-152.03,0.00046,120]
[406278985,1771684808331,-150.0,0.00046,120]
[406278986,1771684808357,-1640.29564532,0.00046,120]
[406278987,1771684808385,-1000.0,0.00046,30]
[406278988,1771684808411,-205.69610488,0.00046,30]
[406278989,1771684808438,-1505.07201593,0.00046,30]
[406278990,1771684808465,-161.31778884,0.00046,120]
[406278991,1771684808490,-1842.23552019,0.00046,90]
[406278992,1771684808517,-311.16855109,0.00046,120]
[406278993,1771684808543,-500.0,0.00046,120]
[406278994,1771684808568,-150.0,0.00046,120]
[406278995,1771684808593,-1626.08,0.00046,120]
[406278996,1771684808618,-1626.08,0.00046,120]
[406278997,1771684808644,-1465.88365799,0.00046,120]
[406278998,1771684808669,-945.10622178,0.00046,120]
[406278999,1771684808694,-842.0,0.00046027,120]
[406279000,1771684808719,-151.0,0.00046036,120]
[406279001,1771684808747,-300.0,0.00046038,30]
[406279002,1771684808772,-666.0,0.00046038,30]
[406279003,1771684808798,-150.0,0.00046043,120]
[406279004,1771684808824,-202.55,0.00046048,120]
[406279005,1771684808852,-152.03,0.000461,120]
[406279006,1771684808879,-202.55,0.00046148,120]
[406279007,1771684808908,-152.26952483,0.000462,120]
[406279008,1771684808933,-519.08653469,0.000462,120]
[406279009,1771684808958,-153.0,0.000462,120]
[406279010,1771684808984,-211.35811196,0.00046219,120]
[406279011,1771684809009,-150.0,0.0004622,120]
[406279012,1771684809036,-202.55,0.00046248,120]
[406279013,1771684809061,-1527.54702332,0.00046279,120]
[406279014,1771684809088,-202.55,0.00046348,120]
[406279015,1771684809113,-352.10495522,0.00046349,30]
[406279016,1771684809140,-87019.0,0.0004635,60]
[406279017,1771684809167,-150.0,0.00046379,120]
[406279018,1771684809195,-202.55,0.00046448,120]
[406279019,1771684809221,-511.62206076,0.00046466,120]
[406279020,1771684809247,-150.0,0.00046489,120]
[406279021,1771684809274,-150.0,0.0004649,120]
[406279022,1771684809299,-1026.3775587,0.0004649,120]
[406279023,1771684809326,-153.0,0.000465,120]
[406279024,1771684809352,-150.0,0.00046512,120]
[406279025,1771684809380,-202.55,0.00046548,120]
[406279026,1771684809408,-150.0,0.00046556,120]
[406279027,1771684809434,-1061.08,0.0004658,120]
[406279028,1771684809474,-216.6460612,0.00046584,120]
[406279029,1771684809500,-209.55926181,0.00046584,120]
[406279030,1771684809529,-10299.999999,0.000466,120]
[406279031,1771684809557,-202.55,0.00046648,120]
[406279032,1771684809583,-1617.40273058,0.00046667,120]
[406279033,1771684809611,-150.0,0.00046738,120]
[406279034,1771684809640,-202.639,0.00046748,120]
[406279035,1771684809667,-150.0,0.00046748,120]
[406279036,1771684809692,-150.0,0.00046755,120]
[406279037,1771684809717,-769.0,0.00046784,90]
[406279038,1771684809743,-150.0,0.00046799,120]
[406279039,1771684809768,-1454.32064919,0.000468,120]
[406279040,1771684809793,-264.498021,0.000468,120]
[406279041,1771684809821,-200.0,0.000468,120]
[406279042,1771684809847,-517.47,0.000468,120]
[406279043,1771684809871,-2004.93396289,0.00046802,120]
[406279044,1771684809899,-500.0,0.00046812,60]
[406279045,1771684809924,-500.0,0.00046812,60]
[406279046,1771684809952,-150.0,0.00046854,120]
[406279047,1771684809978,-999.0,0.00046876,120]
[406279048,1771684810004,-150.0,0.00046895,120]
[406279049,1771684810031,-150.0,0.00046899,120]
[406279050,1771684810057,-4277.60597414,0.000469,120]
[406279051,1771684810083,-153.0,0.000469,120]
[406279052,1771684810108,-177.22145727,0.000469,120]
[406279053,1771684810140,-258.46979101,0.000469,120]
[406279054,1771684810165,-184.12604253,0.000469,120]
[406279055,1771684810190,-183.10282582,0.000469,120]
[406279056,1771684810216,-220.0,0.0004698,30]
[406279057,1771684810243,-220.0,0.0004698,30]
[406279058,1771684810268,-453.0,0.00046986,120]
[406279059,1771684810296,-150.0,0.00046991,120]
[406279060,1771684810322,-2212.60392054,0.00047,30]
[406279061,1771684810347,-150.0,0.00047,120]
[406279062,1771684810374,-1000.0,0.00047,120]
[406279063,1771684810402,-1500.0,0.00047,60]
[406279064,1771684810427,-352.0,0.00047,120]
[406279065,1771684810452,-2295.82486189,0.00047,120]
[406279066,1771684810479,-1854.0,0.00047,120]
[406279067,1771684810505,-150.0,0.00047019,120]
[406279068,1771684810536,-150.0,0.00047054,120]
[406279069,1771684810562,-1718.49040124,0.00047055,120]
[406279070,1771684810593,-150.0,0.00047111,120]
[406279071,1771684810620,-150.0,0.0004715,120]
[406279072,1771684810647,-1421.06,0.0004725,120]
[406279073,1771684810672,-183.74,0.0004725,120]
[406279074,1771684810697,-325.9985,0.000473,90]
[406279075,1771684810722,-13184.379,0.000473,90]
[406279076,1771684810750,-13184.38,0.000473,90]
[406279077,1771684810776,-1937.6738,0.000473,120]
[406279078,1771684810999,-1476.569,0.000473,90]
[406279079,1771684811025,-1476.57,0.000473,90]
[406279080,1771684811050,-305.8938,0.000473,90]
[406279081,1771684811075,-859.08,0.000473,120]
[406279082,1771684811102,-153.0,0.000473,120]
[406279083,1771684811129,-150.0,0.00047341,120]
[406279084,1771684811155,-150.0,0.00047377,120]
[406279085,1771684811181,-200.0,0.00047426,120]
[406279086,1771684811207,-289.3117225,0.00047426,120]
[406279087,1771684811232,-1106.0,0.00047426,30]
[406279088,1771684811257,-1833.05642799,0.00047443,120]
[406279089,1771684811284,-3000.0,0.0004749,120]
[406279090,1771684811308,-750.71939835,0.000475,120]
[406279091,1771684811334,-153.0,0.000477,120]
[406279092,1771684811360,-87019.0,0.000477,60]
[406279093,1771684811385,-1963.98902999,0.00047831,120]
[406279094,1771684811414,-5523.71219026,0.0004788,100]
[406279095,1771684811440,-800.0,0.000479,120]
[406279096,1771684811466,-500.0,0.00047908,60]
[406279097,1771684811492,-500.0,0.00047908,60]
[406279098,1771684811521,-1406.79,0.0004795,120]
[406279099,1771684811546,-150.0,0.00048,120]
[406279100,1771684811572,-1461.83274606,0.00048,120]
[406279101,1771684811598,-909.6473755,0.00048,120]
[406279102,1771684811622,-1057.70853223,0.00048,120]
[406279103,1771684811646,-496.64963752,0.00048,120]
[406279104,1771684811672,-500.0,0.00048,120]
[406279105,1771684811697,-1165.20892642,0.00048,120]
[406279106,1771684811722,-1500.0,0.00048,120]
[406279107,1771684811747,-150.0,0.00048,120]
[406279108,1771684811771,-2500.0,0.00048,30]
[406279109,1771684811794,-1432626.797489,0.00048,120]
[406279110,1771684811819,-703.05328401,0.00048,120]
[406279111,1771684811844,-927.0,0.00048,120]
[406279112,1771684811877,-1465.88365799,0.00048,120]
[406279113,1771684811907,-945.10622178,0.00048,120]
[406279114,1771684811933,-1277.0,0.00048,120]
[406279115,1771684811960,-153.0,0.00048,120]
[406279116,1771684811986,-519.0,0.00048,31]
[406279117,1771684812011,-200.0,0.00048142,120]
[406279118,1771684812037,-4048.04,0.000482,30]
[406279119,1771684812063,-2115.06510922,0.00048219,120]
[406279120,1771684812088,-999.0,0.00048246,120]
[406279121,1771684812114,-177.22145727,0.000483,120]
[406279122,1771684812141,-258.46979101,0.000483,120]
[406279123,1771684812166,-183.10282582,0.000483,120]
[406279124,1771684812191,-617.22,0.00048348,120]
[406279125,1771684812216,-813.77208859,0.000485,120]
[406279126,1771684812241,-45424.75083314,0.000485,30]
[406279127,1771684812267,-153.0,0.000485,120]
[406279128,1771684812291,-1000.0,0.000486,120]
[406279129,1771684812320,-3518.744,0.000486,90]
[406279130,1771684812345,-3518.744,0.000486,90]
[406279131,1771684812371,-3518.74,0.000486,90]
[406279132,1771684812397,-2291.32053499,0.00048607,120]
[406279133,1771684812422,-212.32,0.0004867,120]
[406279134,1771684812448,-1000.0,0.0004869,120]
[406279135,1771684812475,-153.0,0.000487,120]
[406279136,1771684812500,-1000.0,0.00048705,120]
[406279137,1771684812530,-500.0,0.00048767,120]
[406279138,1771684812561,-500.0,0.00048767,120]
[406279139,1771684812589,-500.0,0.00048767,120]
[406279140,1771684812616,-500.0,0.00048767,120]
[406279141,1771684812642,-500.0,0.00048767,120]
[406279142,1771684812668,-500.0,0.00048767,120]
[406279143,1771684812694,-500.0,0.00048767,120]
[406279144,1771684812721,-500.0,0.00048767,120]
[406279145,1771684812747,-500.0,0.00048767,120]
[406279146,1771684812773,-500.0,0.00048767,120]
[406279147,1771684812797,-500.0,0.00048767,120]
[406279148,1771684812822,-500.0,0.00048767,120]
[406279149,1771684812848,-500.0,0.00048767,120]
[406279150,1771684812874,-500.0,0.00048767,120]
[406279151,1771684812903,-500.0,0.00048767,120]
[406279152,1771684812930,-500.0,0.00048767,120]
[406279153,1771684812957,-500.0,0.00048767,120]
[406279154,1771684812982,-500.0,0.00048767,120]
[406279155,1771684813010,-391.15568436,0.00048767,120]
[406279156,1771684813036,-1000.0,0.00048805,120]
[406279157,1771684813063,-517.47,0.0004884,120]
[406279158,1771684813088,-527.94116005,0.0004888,120]